bitfinex-derivatives/quotes_BTCF0:USTF0_20241022
["timestamp","ask_amount","ask_price","bid_price","bid_amount"]
[1729607694690,0.3608,67513.0,67496.0,0.3608]
[1729607694882,0.17,67497.0,67496.0,0.3608]
[1729607695089,0.158,67497.0,67496.0,0.3608]
[1729607695285,0.158,67497.0,67496.0,0.47377926]
[1729607695489,0.60248,67497.0,67496.0,0.47377926]
[1729607695686,0.44448,67497.0,67496.0,0.55992918]
[1729607695890,0.074089,67523.0,67496.0,0.61127823]
[1729607696095,0.17,67510.0,67504.0,0.08565612]
[1729607696297,0.4,67511.0,67509.0,0.3608]
[1729607696598,0.0022239,67518.0,67509.0,0.3608]
[1729607696900,0.4022239,67518.0,67517.0,0.3608]
[1729607697101,0.4022239,67518.0,67517.0,0.3015267]
[1729607697102,0.4465439,67518.0,67517.0,0.3015267]
[1729607697790,0.4465439,67518.0,67517.0,0.34398823]
[1729607697991,0.4465439,67518.0,67517.0,0.3015267]
[1729607697992,0.0022239,67518.0,67517.0,0.3015267]
[1729607698200,0.4,67537.0,67517.0,0.3015267]
[1729607698394,0.39,67545.0,67535.0,0.3608]
[1729607698595,0.4,67541.0,67531.0,0.3608]
[1729607699105,0.4,67541.0,67537.0,0.3608]
[1729607699297,0.4,67538.0,67531.0,0.3608]
[1729607699605,0.01019611,67545.0,67531.0,0.3608]
[1729607699606,0.4,67544.0,67531.0,0.3608]
[1729607699898,0.01019611,67545.0,67537.0,0.3608]
[1729607700106,0.39,67544.0,67537.0,0.3608]
[1729607700605,0.0022219,67551.0,67543.0,0.3608]
[1729607700796,0.0022219,67551.0,67537.0,0.3608]
[1729607700797,0.39,67547.0,67544.0,0.3608]
[1729607700994,0.4,67545.0,67543.0,0.3608]
[1729607701296,0.39,67545.0,67543.0,0.3608]
[1729607701501,0.0022219,67551.0,67543.0,0.3608]
[1729607701696,0.0022219,67551.0,67550.0,0.3608]
[1729607702208,0.4463419,67551.0,67550.0,0.3608]
[1729607702697,0.0022219,67551.0,67550.0,0.3608]
[1729607702893,0.4463419,67551.0,67550.0,0.30158198]
[1729607703104,0.0022219,67551.0,67550.0,0.30158198]
[1729607703796,0.39067202,67551.0,67550.0,0.30158198]
[1729607704103,0.00067202,67551.0,67550.0,0.30158198]
[1729607704503,0.00979086,67568.0,67550.0,0.30158198]
[1729607704504,0.39979086,67568.0,67550.0,0.30158198]
[1729607704698,0.39,67568.0,67567.0,0.3608]
[1729607704900,0.834,67568.0,67567.0,0.3608]
[1729607705301,1.434,67568.0,67567.0,0.3608]
[1729607705511,0.834,67568.0,67567.0,0.3608]
[1729607706096,0.444,67568.0,67567.0,0.3608]
[1729607706304,0.00222069,67581.0,67567.0,0.7508]
[1729607706605,0.00222069,67581.0,67577.0,0.3608]
[1729607707007,1.89,67594.0,67577.0,0.3608]
[1729607707207,0.464012,67594.0,67585.0,0.3608]
[1729607707509,0.074014,67592.0,67585.0,0.3608]
[1729607707898,0.44388,67591.0,67585.0,0.3608]
[1729607708100,0.074015,67591.0,67587.0,0.3608]
[1729607708300,0.44388,67590.0,67587.0,0.3608]
[1729607708604,0.44384,67593.0,67587.0,0.3608]
[1729607709006,0.44384,67592.0,67587.0,0.3608]
[1729607709203,0.074011,67595.0,67587.0,0.3608]
[1729607709506,0.01017259,67599.0,67594.0,0.3608]
[1729607709711,0.4438,67598.0,67594.0,0.3608]
[1729607709910,0.4438,67599.0,67594.0,0.3608]
[1729607710211,0.3608,67597.0,67580.0,0.00221942]
[1729607710399,0.7508,67581.0,67561.0,0.3608]
[1729607710600,0.074036,67572.0,67561.0,0.3608]
[1729607710808,0.39,67574.0,67561.0,0.3608]
[1729607710809,1.89,67580.0,67568.0,0.3608]
[1729607711005,1.5,67580.0,67575.0,0.3608]
[1729607711205,0.074028,67579.0,67575.0,0.3608]
[1729607711512,1.5,67580.0,67576.0,0.3608]
[1729607711708,0.00222068,67586.0,67579.0,0.1327883]
[1729607711900,0.00222068,67586.0,67578.0,0.39]
[1729607711901,0.00222068,67586.0,67585.0,0.3608]
[1729607713722,0.44572631,67586.0,67585.0,0.3608]
[1729607714112,0.40127769,67586.0,67585.0,0.3608]
[1729607714307,1.5,67596.0,67585.0,0.3608]
[1729607714609,2.017809,67596.0,67595.0,0.3528]
[1729607714817,1.574009,67596.0,67595.0,0.3528]
[1729607715031,2.017809,67596.0,67595.0,0.3528]
[1729607715604,2.01881733,67596.0,67595.0,0.3528]
[1729607716214,1.50100833,67596.0,67595.0,0.3528]
[1729607716418,0.44480833,67596.0,67595.0,0.3528]
[1729607716618,0.00100833,67596.0,67595.0,0.3528]
[1729607717023,1.5,67602.0,67595.0,0.3528]
[1729607717212,1.5,67602.0,67601.0,0.3608]
[1729607717519,0.074002,67603.0,67601.0,0.3608]
[1729607717713,0.44376,67602.0,67601.0,0.3608]
[1729607719007,0.074002,67603.0,67601.0,0.3608]
[1729607720016,1.510888,67607.0,67601.0,0.3608]
[1729607720209,1.510088,67607.0,67601.0,0.3608]
[1729607720410,0.074002,67603.0,67601.0,0.3608]
[1729607722419,0.074002,67603.0,67601.0,0.40322561]
[1729607722620,0.074002,67603.0,67601.0,0.3608]
[1729607722812,0.074002,67603.0,67588.0,0.3608]
[1729607722813,0.44376,67602.0,67597.0,0.04242561]
[1729607723011,0.074019,67587.0,67586.0,0.05656748]
[1729607723216,0.7415,67587.0,67586.0,0.3608]
[1729607723413,0.74098495,67587.0,67586.0,0.72307411]
[1729607723718,0.6878788,67587.0,67586.0,0.8603869]
[1729607724225,0.58243111,67587.0,67586.0,0.61093014]
[1729607724409,0.53053111,67587.0,67586.0,0.61093014]
[1729607725309,0.53053111,67587.0,67586.0,0.7727343]
[1729607725507,0.53053111,67587.0,67586.0,0.87308438]
[1729607725913,0.53053111,67587.0,67586.0,0.87308322]
[1729607726116,0.60455011,67587.0,67586.0,0.41193925]
[1729607726317,1.90843011,67587.0,67586.0,0.41193925]
[1729607727022,1.64843011,67587.0,67586.0,0.41193925]
[1729607727619,1.04843011,67587.0,67586.0,0.41193925]
[1729607727815,0.60455011,67587.0,67586.0,0.41193925]
[1729607728120,0.61440539,67587.0,67586.0,0.41193925]
[1729607728322,0.61440539,67587.0,67586.0,0.57377125]
[1729607728523,0.61440539,67587.0,67586.0,0.67458641]
[1729607728725,0.61440539,67587.0,67586.0,0.57377671]
[1729607729222,0.61440539,67587.0,67586.0,0.41193925]
[1729607729427,1.65828539,67587.0,67586.0,0.41193925]
[1729607729610,0.074029,67578.0,67577.0,0.11697355]
[1729607729923,0.07403,67577.0,67560.0,0.13159525]
[1729607730120,0.3608,67575.0,67564.0,0.13159525]
[1729607730333,0.3608,67575.0,67563.0,0.24945676]
[1729607730334,0.074044,67564.0,67563.0,0.24945676]
[1729607730624,0.074047,67562.0,67560.0,0.3608]
[1729607730924,0.074047,67561.0,67560.0,0.3608]
[1729607731115,0.38994697,67569.0,67554.0,0.3608]
[1729607731314,0.40006643,67569.0,67557.0,0.24145676]
[1729607731621,0.40006643,67569.0,67548.0,0.074062]
[1729607731921,0.074053,67556.0,67550.0,0.24145676]
[1729607732228,0.07404,67568.0,67553.0,0.3608]
[1729607732729,0.074059,67551.0,67548.0,0.13159525]
[1729607733018,0.34547619,67551.0,67547.0,0.3608]
[1729607733219,0.34547619,67551.0,67540.0,0.14632335]
[1729607733220,0.074069,67541.0,67540.0,0.3608]
[1729607733516,0.074074,67537.0,67536.0,0.13159525]
[1729607733719,0.53053111,67541.0,67537.0,0.24145676]
[1729607733917,0.53053111,67541.0,67540.0,0.3608]
[1729607734118,0.48605546,67541.0,67540.0,0.43487]
[1729607734418,0.48605546,67541.0,67540.0,0.3608]
[1729607734625,0.44165546,67541.0,67540.0,0.3608]
[1729607734812,0.44165546,67541.0,67537.0,0.074074]
[1729607735011,0.44165546,67541.0,67533.0,0.6206609]
[1729607735012,0.074072,67539.0,67533.0,0.6206609]
[1729607735224,0.44165546,67541.0,67536.0,0.31553176]
[1729607735420,0.074071,67540.0,67536.0,0.24145676]
[1729607735616,0.44165546,67541.0,67533.0,0.6206609]
[1729607735923,0.074077,67534.0,67533.0,0.6206609]
[1729607736127,0.434877,67534.0,67533.0,0.2598609]
[1729607736615,0.074077,67534.0,67533.0,0.2598609]
[1729607736817,0.08403931,67534.0,67533.0,0.2598609]
[1729607737017,1.12827931,67534.0,67533.0,0.12360161]
[1729607737319,1.12827931,67534.0,67521.0,0.3608]
[1729607737320,0.07408,67532.0,67520.0,0.25988363]
[1729607737513,2.55420231,67534.0,67520.0,0.23898817]
[1729607737514,0.434891,67521.0,67520.0,0.23898817]
[1729607737834,0.707731,67521.0,67520.0,0.03230696]
[1729607738121,0.707731,67521.0,67513.0,0.01534767]
[1729607738122,0.074099,67514.0,67513.0,0.01534767]
[1729607738313,2.334899,67514.0,67513.0,0.08738029]
[1729607738715,2.607739,67514.0,67513.0,0.08738029]
[1729607739218,2.51873121,67514.0,67513.0,0.08738029]
[1729607739520,2.59283021,67514.0,67513.0,0.08738029]
[1729607739925,2.19283021,67514.0,67513.0,0.08738029]
[1729607740114,2.19283021,67514.0,67511.0,0.07191461]
[1729607740115,0.0741,67513.0,67511.0,0.07191461]
[1729607740316,0.0741,67513.0,67510.0,0.2599097]
[1729607740515,0.44165546,67519.0,67512.0,1.32396011]
[1729607740516,0.39175546,67519.0,67512.0,1.32396011]
[1729607740719,0.00222188,67548.0,67518.0,1.06635176]
[1729607740914,0.00222188,67548.0,67544.0,0.05738501]
[1729607741119,0.00222188,67548.0,67545.0,0.12907919]
[1729607741321,0.00222188,67548.0,67545.0,0.1290617]
[1729607741526,0.074064,67546.0,67545.0,0.1290617]
[1729607742619,0.074064,67546.0,67545.0,0.18643445]
[1729607745723,0.074064,67546.0,67545.0,0.17843445]
[1729607749226,0.074064,67546.0,67544.0,0.07906882]
[1729607749227,1.81220324,67546.0,67544.0,0.07906882]
[1729607749423,1.81220324,67546.0,67533.0,0.07169758]
[1729607749424,0.44416,67545.0,67527.0,0.0400103]
[1729607749629,0.074093,67519.0,67512.0,0.33170335]
[1729607749921,2.334893,67519.0,67512.0,0.33170335]
[1729607750527,0.074096,67517.0,67501.0,0.3608]
[1729607750727,0.074096,67517.0,67505.0,0.074109]
[1729607750927,0.074096,67517.0,67501.0,0.434912]
[1729607751232,0.074096,67517.0,67502.0,0.074112]
[1729607751433,0.074096,67517.0,67501.0,0.3608]
[1729607751631,0.518416,67517.0,67501.0,0.3608]
[1729607752034,1.118416,67517.0,67501.0,0.3608]
[1729607752228,0.518416,67517.0,67501.0,0.3608]
[1729607752733,1.118416,67517.0,67501.0,0.3608]
[1729607753432,0.074096,67517.0,67501.0,0.3608]
[1729607753637,0.674096,67517.0,67501.0,0.3608]
[1729607753933,0.074096,67517.0,67501.0,0.3608]
[1729607754124,0.518416,67517.0,67501.0,0.3608]
[1729607754329,0.074096,67517.0,67501.0,0.3608]
[1729607754526,1.118416,67517.0,67500.0,0.0325]
[1729607754831,0.518416,67517.0,67500.0,0.0325]
[1729607755726,0.074096,67517.0,67500.0,0.106614]
[1729607756345,0.074096,67517.0,67503.0,0.3608]
[1729607756941,0.074096,67517.0,67504.0,0.074109]
[1729607757730,0.074096,67517.0,67503.0,0.434911]
[1729607758034,0.074096,67517.0,67507.0,0.074107]
[1729607758232,0.01065708,67519.0,67516.0,0.35618986]
[1729607758434,0.1499,67525.0,67518.0,0.60225676]
[1729607758634,0.3608,67531.0,67520.0,0.074092]
[1729607758635,0.00076,67521.0,67520.0,0.074092]
[1729607758834,0.08423653,67528.0,67523.0,0.074089]
[1729607758835,0.074084,67528.0,67523.0,0.074089]
[1729607759142,0.074084,67528.0,67527.0,0.24145676]
[1729607759734,0.3608,67530.0,67527.0,0.24145676]
[1729607760332,0.3608,67530.0,67518.0,0.3608]
[1729607760333,0.074083,67529.0,67518.0,0.3608]
[1729607760534,0.1499,67531.0,67529.0,0.24145676]
[1729607760741,0.0002,67531.0,67530.0,0.67633776]
[1729607760930,0.07628388,67548.0,67530.0,0.67633776]
[1729607761135,0.00222188,67548.0,67547.0,0.074063]
[1729607761338,0.00222188,67548.0,67545.0,0.24145676]
[1729607761839,0.01245528,67548.0,67546.0,0.074063]
[1729607762143,0.01245528,67548.0,67545.0,0.31552076]
[1729607762332,0.08651728,67548.0,67545.0,0.24145676]
[1729607762536,0.4,67546.0,67539.0,0.3608]
[1729607762846,0.074067,67543.0,67542.0,0.24145676]
[1729607764143,0.074064,67546.0,67542.0,0.24145676]
[1729607764333,0.39,67547.0,67543.0,0.31552276]
[1729607764535,0.39,67547.0,67543.0,0.24145676]
[1729607764738,0.464063,67547.0,67543.0,0.24145676]
[1729607765045,0.39,67547.0,67539.0,0.3608]
[1729607765242,0.074067,67544.0,67542.0,0.24145676]
[1729607765744,0.074067,67543.0,67542.0,0.24145676]
[1729607765947,0.074067,67543.0,67526.0,0.7508]
[1729607765948,0.3608,67545.0,67530.0,0.074081]
[1729607766137,0.3608,67539.0,67531.0,0.24145676]
[1729607766338,0.074079,67532.0,67531.0,0.24145676]
[1729607766634,0.074076,67535.0,67531.0,0.24145676]
[1729607766938,0.074079,67532.0,67531.0,0.24145676]
[1729607767146,0.3608,67532.0,67526.0,0.3608]
[1729607767440,0.074082,67530.0,67529.0,0.24145676]
[1729607767641,0.074091,67522.0,67521.0,0.24145676]
[1729607767847,0.074091,67522.0,67513.0,0.3608]
[1729607767848,0.3608,67524.0,67519.0,0.24145676]
[1729607768040,0.074086,67526.0,67519.0,0.24145676]
[1729607768355,0.7608,67532.0,67519.0,0.24145676]
[1729607768356,0.074077,67535.0,67532.0,0.074078]
[1729607768538,0.074077,67535.0,67533.0,0.24145676]
[1729607768733,1.870554,67538.0,67534.0,0.24145676]
[1729607769048,0.3608,67546.0,67541.0,0.074069]
[1729607769049,0.434865,67546.0,67541.0,0.074069]
[1729607769346,0.24638188,67548.0,67547.0,0.074063]
[1729607769347,0.00222188,67548.0,67547.0,0.074063]
[1729607769645,0.00222188,67548.0,67547.0,0.31551976]
[1729607769946,0.07628388,67548.0,67547.0,0.24145676]
[1729607770439,0.07628388,67548.0,67534.0,0.3608]
[1729607770440,0.47628388,67548.0,67534.0,0.434876]
[1729607770642,0.074072,67539.0,67534.0,0.434876]
[1729607770836,0.074074,67537.0,67534.0,0.434876]
[1729607771346,0.074074,67537.0,67536.0,0.24145676]
[1729607771550,0.07407,67541.0,67536.0,0.31553076]
[1729607771742,0.074065,67545.0,67544.0,0.24145676]
[1729607771932,0.434865,67545.0,67544.0,0.24145676]
[1729607772742,0.37068954,67545.0,67534.0,0.3608]
[1729607772943,0.074075,67536.0,67535.0,0.24145676]
[1729607773141,0.4,67537.0,67530.0,0.24145676]
[1729607773344,0.47408,67531.0,67530.0,0.24145676]
[1729607773659,0.3608,67568.0,67547.0,0.074063]
[1729607773944,0.3608,67568.0,67565.0,0.23923488]
[1729607774446,0.00986659,67568.0,67567.0,0.3608]
[1729607774643,0.39,67574.0,67565.0,0.23923488]
[1729607774831,0.39,67580.0,67571.0,0.3608]
[1729607775037,0.074033,67574.0,67573.0,0.23923488]
[1729607775250,0.0099179,67580.0,67579.0,0.23923488]
[1729607775540,0.3608,67585.0,67575.0,0.60003488]
[1729607775541,0.07403,67578.0,67575.0,0.60003488]
[1729607775741,0.3608,67576.0,67575.0,0.23923488]
[1729607776043,0.3608,67576.0,67560.0,0.074048]
[1729607776245,0.074041,67567.0,67565.0,0.23923488]
[1729607776544,0.3608,67570.0,67558.0,0.434851]
[1729607776545,0.39,67566.0,67558.0,0.36272]
[1729607776735,0.07405,67559.0,67558.0,0.3528]
[1729607777039,0.07405,67559.0,67558.0,0.23923488]
[1729607777249,0.074046,67562.0,67558.0,0.23923488]
[1729607777548,0.074046,67562.0,67552.0,0.36284]
[1729607777549,0.074048,67561.0,67554.0,0.074054]
[1729607777739,0.434845,67563.0,67562.0,0.23923488]
[1729607779845,0.3608,67563.0,67545.0,0.3608]
[1729607780146,0.074056,67553.0,67549.0,0.07628081]
[1729607780353,0.3608,67555.0,67549.0,0.00221981]
[1729607780539,0.074065,67546.0,67540.0,0.074069]
[1729607780734,0.3608,67550.0,67542.0,0.3608]
[1729607780933,0.3608,67550.0,67549.0,0.23923488]
[1729607781142,0.3608,67550.0,67542.0,0.3608]
[1729607781441,0.3608,67550.0,67546.0,0.23923488]
[1729607781641,0.434862,67549.0,67546.0,0.23923488]
[1729607781844,0.074062,67549.0,67546.0,0.23923488]
[1729607782144,0.434862,67548.0,67546.0,0.23923488]
[1729607782353,0.60558723,67555.0,67550.0,0.23923488]
[1729607782652,0.074058,67552.0,67550.0,0.23923488]
[1729607783358,0.074058,67551.0,67550.0,0.23923488]
[1729607783547,0.074058,67551.0,67543.0,0.3608]
[1729607783548,0.37058723,67555.0,67554.0,0.23923488]
[1729607784544,0.3608,67555.0,67554.0,0.23923488]
[1729607785346,0.3608,67555.0,67554.0,0.31328988]
[1729607785548,0.07404,67568.0,67564.0,0.074044]
[1729607785749,0.3608,67573.0,67570.0,0.23923488]
[1729607785750,1.5,67572.0,67570.0,0.23923488]
[1729607785943,0.0762583,67571.0,67570.0,0.23923488]
[1729607786753,0.086062,67571.0,67570.0,0.23923488]
[1729607788751,0.012025,67571.0,67570.0,0.23923488]
[1729607788958,0.012025,67571.0,67570.0,0.31327288]
[1729607789250,0.012025,67571.0,67570.0,0.23923488]
[1729607789444,0.012025,67571.0,67570.0,0.31327288]
[1729607789644,0.012025,67571.0,67570.0,0.23923488]
[1729607789851,0.0022213,67571.0,67570.0,0.23923488]
[1729607790753,0.0022213,67571.0,67549.0,0.43678]
[1729607790754,0.2622213,67571.0,67549.0,0.00192]
[1729607790954,0.3608,67554.0,67549.0,0.074059]
[1729607791452,0.3608,67562.0,67546.0,0.3608]
[1729607791453,0.074043,67566.0,67553.0,0.23923488]
[1729607791645,0.074042,67567.0,67565.0,0.23923488]
[1729607791851,0.074042,67567.0,67556.0,0.26]
[1729607792047,0.3630213,67571.0,67566.0,0.23923488]
[1729607792349,0.4370573,67571.0,67570.0,0.23123488]
[1729607793554,0.8270573,67571.0,67570.0,0.23123488]
[1729607793752,0.7530213,67571.0,67553.0,0.434856]
[1729607793948,0.3608,67561.0,67553.0,0.3608]
[1729607794360,0.434848,67561.0,67560.0,0.23123488]
[1729607794560,0.074048,67561.0,67560.0,0.23123488]
[1729607796356,0.01000984,67564.0,67560.0,0.23123488]
[1729607796555,0.3608,67565.0,67553.0,0.3608]
[1729607796857,0.434843,67565.0,67564.0,0.23123488]
[1729607797244,0.434843,67565.0,67553.0,0.3608]
[1729607797245,0.7508,67565.0,67553.0,0.3608]
[1729607797457,0.074055,67554.0,67553.0,0.3608]
[1729607797646,0.464051,67558.0,67557.0,0.23123488]
[1729607797850,0.074051,67558.0,67557.0,0.23123488]
[1729607800450,0.434851,67558.0,67557.0,0.23123488]
[1729607800648,0.4448788,67558.0,67557.0,0.23123488]
[1729607800855,0.7608278,67558.0,67544.0,0.00222028]
[1729607801158,0.3608,67546.0,67529.0,0.43252958]
[1729607801461,0.3608,67546.0,67523.0,0.08852266]
[1729607801462,0.074085,67527.0,67523.0,0.00222087]
[1729607801755,0.03701581,67527.0,67526.0,0.23123488]
[1729607802162,0.074088,67524.0,67523.0,0.00222087]
[1729607802548,0.074088,67524.0,67523.0,0.23123488]
[1729607802964,0.3608,67525.0,67523.0,0.23123488]
[1729607803266,0.3608,67525.0,67524.0,0.23123488]
[1729607804165,0.434887,67525.0,67524.0,0.23123488]
[1729607804362,0.3608,67525.0,67524.0,0.23123488]
[1729607804659,0.434887,67525.0,67524.0,0.23123488]
[1729607807658,0.434887,67525.0,67524.0,0.22323488]
[1729607808354,0.3608,67525.0,67524.0,0.22323488]
[1729607808556,0.434887,67525.0,67524.0,0.22323488]
[1729607809756,0.3608,67525.0,67524.0,0.22323488]
[1729607810157,0.434887,67525.0,67524.0,0.22323488]
[1729607810854,0.3608,67525.0,67524.0,0.29732288]
[1729607811662,0.4,67535.0,67524.0,0.29732288]
[1729607811663,0.3608,67543.0,67524.0,0.68732288]
[1729607811859,0.39,67586.0,67537.0,0.22323488]
[1729607811860,0.8462,67557.0,67537.0,0.22323488]
[1729607812064,0.074063,67547.0,67540.0,0.65810488]
[1729607812760,0.3608,67551.0,67540.0,0.65810488]
[1729607812958,0.3608,67551.0,67540.0,0.58403488]
[1729607813259,0.3608,67551.0,67550.0,0.22323488]
[1729607813260,0.434859,67551.0,67550.0,0.22323488]
[1729607813666,0.434859,67551.0,67533.0,0.05753822]
[1729607813667,0.4447556,67551.0,67533.0,0.05753822]
[1729607813860,0.3608,67544.0,67536.0,0.074074]
[1729607814057,0.3608,67544.0,67537.0,0.074073]
[1729607814258,0.434867,67544.0,67543.0,0.22323488]
[1729607815065,0.074067,67544.0,67543.0,0.22323488]
[1729607815263,0.434867,67544.0,67543.0,0.22323488]
[1729607815566,0.074079,67533.0,67522.0,0.05753822]
[1729607815764,0.074081,67531.0,67528.0,0.074083]
[1729607816065,0.37097918,67544.0,67541.0,0.22323488]
[1729607816373,0.074064,67546.0,67543.0,0.22323488]
[1729607816565,0.074064,67546.0,67545.0,0.22323488]
[1729607816873,0.37075369,67548.0,67545.0,0.22323488]
[1729607817165,0.37075369,67548.0,67539.0,0.6208]
[1729607817166,0.37075369,67548.0,67547.0,0.22323488]
[1729607817565,0.44481569,67548.0,67547.0,0.22323488]
[1729607817771,0.3608,67548.0,67547.0,0.22323488]
[1729607817970,0.434862,67548.0,67547.0,0.22323488]
[1729607818673,0.074075,67536.0,67530.0,0.074081]
[1729607818867,0.26,67534.0,67527.0,0.074084]
[1729607819063,0.07408,67532.0,67524.0,0.05753822]
[1729607819271,0.074075,67536.0,67533.0,0.22323488]
[1729607819466,0.074075,67536.0,67532.0,0.074079]
[1729607819666,0.074075,67536.0,67535.0,0.22323488]
[1729607820175,0.3608,67540.0,67535.0,0.22323488]
[1729607820380,0.3608,67540.0,67539.0,0.22323488]
[1729607820566,1.94474387,67540.0,67539.0,0.22323488]
[1729607820768,1.87067387,67540.0,67539.0,0.22323488]
[1729607821078,0.44474387,67540.0,67539.0,0.22323488]
[1729607821974,0.44474387,67540.0,67523.0,0.074088]
[1729607821975,0.074084,67528.0,67523.0,0.074088]
[1729607822169,0.074084,67528.0,67525.0,0.074087]
[1729607822369,0.26,67531.0,67527.0,0.29731888]
[1729607822573,0.33408,67531.0,67530.0,0.22323488]
[1729607823064,0.074088,67525.0,67522.0,0.3608]
[1729607823379,0.074078,67534.0,67530.0,0.21523488]
[1729607823681,0.074078,67534.0,67533.0,0.21523488]
[1729607823682,0.434877,67534.0,67533.0,0.21523488]
[1729607824574,0.3608,67534.0,67526.0,0.074085]
[1729607824881,0.44506755,67534.0,67533.0,0.21523488]
[1729607825274,0.37099055,67534.0,67533.0,0.21523488]
[1729607825576,0.37099055,67534.0,67533.0,0.28931288]
[1729607826370,0.44506755,67534.0,67533.0,0.21523488]
[1729607828587,0.074088,67524.0,67523.0,0.05753822]
[1729607829086,0.074088,67524.0,67523.0,0.2727731]
[1729607829488,0.074085,67527.0,67523.0,0.2727731]
[1729607829779,0.37099055,67534.0,67533.0,0.074078]
[1729607829980,0.37099055,67534.0,67533.0,0.28931288]
[1729607830478,0.37099055,67534.0,67533.0,0.21523488]
[1729607830676,0.01019055,67534.0,67533.0,0.21523488]
[1729607830881,0.074076,67535.0,67533.0,0.21523488]
[1729607831081,0.074076,67535.0,67534.0,0.21523488]
[1729607831686,0.074073,67538.0,67534.0,0.21523488]
[1729607831879,0.3608,67539.0,67538.0,0.21523488]
[1729607832085,0.434872,67539.0,67538.0,0.21523488]
[1729607833881,0.074068,67542.0,67538.0,0.21523488]
[1729607834088,0.44493891,67545.0,67544.0,0.21523488]
[1729607834289,0.08413891,67545.0,67544.0,0.21523488]
[1729607834583,0.44493891,67545.0,67544.0,0.21523488]
[1729607835888,0.70493891,67545.0,67544.0,0.21523488]
[1729607836383,1.07503291,67545.0,67533.0,0.05770549]
[1729607836585,1.07503291,67545.0,67544.0,0.21523488]
[1729607836586,0.08413891,67545.0,67544.0,0.21523488]
[1729607836787,0.44493891,67545.0,67544.0,0.21523488]
[1729607837281,0.37087291,67545.0,67533.0,0.05770549]
[1729607837487,0.334069,67541.0,67540.0,0.21523488]
[1729607837991,0.074077,67534.0,67533.0,0.05770549]
[1729607838592,0.074077,67534.0,67533.0,0.26494037]
[1729607838791,0.074085,67527.0,67523.0,0.3608]
[1729607839091,0.074088,67524.0,67523.0,0.3608]
[1729607839290,0.074094,67519.0,67516.0,0.07213187]
[1729607839478,0.3608,67526.0,67518.0,0.21523488]
[1729607839682,0.3608,67532.0,67525.0,0.21523488]
[1729607839883,0.07408,67531.0,67529.0,0.21523488]
[1729607840092,0.074081,67530.0,67529.0,0.21523488]
[1729607840286,0.074081,67530.0,67519.0,0.3608]
[1729607840287,0.074092,67520.0,67519.0,0.3608]
[1729607840683,0.074092,67521.0,67519.0,0.57603488]
[1729607840881,0.434886,67526.0,67525.0,0.21523488]
[1729607843190,0.074092,67520.0,67517.0,0.0432789]
[1729607843413,0.074087,67525.0,67520.0,0.21523488]
[1729607843414,0.074092,67521.0,67520.0,0.21523488]
[1729607846385,0.08414257,67521.0,67520.0,0.21523488]
[1729607847282,0.08414257,67521.0,67512.0,0.3608]
[1729607847283,0.0741,67513.0,67512.0,0.3608]
[1729607847683,0.03702233,67513.0,67512.0,0.57603488]
[1729607847884,0.03702233,67513.0,67512.0,0.21523488]
[1729607848286,0.58226233,67513.0,67512.0,0.21523488]
[1729607848891,0.58226233,67513.0,67500.0,0.11740719]
[1729607849089,0.26,67503.0,67499.0,0.40409419]
[1729607849295,0.3608,67506.0,67499.0,0.3608]
[1729607849496,0.434908,67506.0,67505.0,0.21523488]
[1729607849794,0.258548,67506.0,67505.0,0.21523488]
[1729607849991,1.50973215,67513.0,67505.0,0.51852907]
[1729607850195,1.5741,67513.0,67512.0,0.21523488]
[1729607850697,0.0741,67513.0,67512.0,0.21523488]
[1729607850990,0.0741,67513.0,67512.0,0.25849409]
[1729607851692,0.4349,67513.0,67512.0,0.21523488]
[1729607851990,0.08414338,67513.0,67512.0,0.21523488]
[1729607852197,0.44494338,67513.0,67512.0,0.21523488]
[1729607852397,0.37084338,67513.0,67502.0,0.04325921]
[1729607852693,0.26,67503.0,67500.0,0.04325921]
[1729607852899,0.26,67503.0,67502.0,0.21523488]
[1729607853093,0.074112,67502.0,67497.0,0.04325921]
[1729607853295,0.074112,67502.0,67501.0,0.21523488]
[1729607853496,0.334112,67502.0,67501.0,0.21523488]
[1729607854000,0.334112,67502.0,67501.0,0.20723488]
[1729607854589,0.07412,67495.0,67494.0,0.04325921]
[1729607854787,0.33412,67495.0,67494.0,0.04325921]
[1729607854988,0.074118,67497.0,67494.0,0.20723488]
[1729607855197,0.510675,67499.0,67498.0,0.20723488]
[1729607855894,0.43656,67499.0,67490.0,0.00222219]
[1729607856200,0.074125,67490.0,67482.0,0.04325921]
[1729607856495,0.3608,67491.0,67483.0,0.20723488]
[1729607856496,0.26,67487.0,67483.0,0.20723488]
[1729607856690,0.3608,67491.0,67490.0,0.20723488]
[1729607857394,0.694924,67491.0,67490.0,0.20723488]
[1729607857597,0.871484,67491.0,67490.0,0.20723488]
[1729607857899,0.53736,67491.0,67490.0,0.20723488]
[1729607858291,0.17656,67491.0,67490.0,0.56803488]
[1729607858590,0.17656,67495.0,67490.0,0.56803488]
[1729607858789,0.17656,67495.0,67494.0,0.20723488]
[1729607858986,0.17656,67495.0,67494.0,0.28135588]
[1729607859301,0.17656,67499.0,67496.0,0.074118]
[1729607859598,0.17656,67499.0,67493.0,0.074122]
[1729607859797,0.17656,67499.0,67498.0,0.20723488]
[1729607859994,0.26,67502.0,67498.0,0.20723488]
[1729607860189,0.25288004,67516.0,67507.0,0.074106]
[1729607860387,0.25288004,67516.0,67515.0,0.20723488]
[1729607860388,0.51288004,67516.0,67515.0,0.20723488]
[1729607860801,0.33632004,67516.0,67515.0,0.20723488]
[1729607861102,0.34633169,67516.0,67515.0,0.20723488]
[1729607861294,0.70713169,67516.0,67515.0,0.20723488]
[1729607862303,0.074107,67507.0,67501.0,0.074113]
[1729607862600,0.3608,67507.0,67501.0,0.074112]
[1729607862803,0.3608,67507.0,67500.0,0.04310582]
[1729607862804,0.3608,67507.0,67506.0,0.20723488]
[1729607863189,0.434907,67507.0,67506.0,0.20723488]
[1729607864535,0.074112,67502.0,67494.0,0.07412]
[1729607864696,0.26,67501.0,67493.0,0.04310582]
[1729607865003,0.334113,67501.0,67500.0,0.20723488]
[1729607866999,0.074121,67494.0,67492.0,0.04532794]
[1729607867196,0.074121,67494.0,67492.0,0.00222212]